[Event "Klubbmästerskap 2025 Torsdagar"]
[Site "Linköping, Sweden"]
[Date "2025.02.13"]
[Round "4.6"]
[White "Qwarfort, Fredrik"]
[Black "Leijon, Noah"]
[Result "1/2-1/2"]
[TimeControl "90 min + 30 sec/move"]
[WhiteElo "1826"]
[BlackElo "1803"]

1. d4 {[%clk 01:30:59]} d5 {[%clk 01:30:56]} {[%emt 00:00:05]} 2. c4 {[%clk
01:31:23]} {[%emt 00:00:05]} e5 {[%clk 01:31:23]} {[%emt 00:00:03]} 3. dxe5
{[%clk 01:31:00]} {[%emt 00:00:53]} d4 {[%clk 01:31:45]} {[%emt 00:00:08]} 4.
Nf3 {[%clk 01:29:33]} {[%emt 00:01:57]} Nc6 {[%clk 01:31:32]} {[%emt 00:00:43]}
5. a3 {[%clk 01:27:02]} {[%emt 00:03:00]} Nge7 {[%clk 01:29:28]} {[%emt
00:02:34]} 6. e3 {[%clk 01:25:30]} {[%emt 00:02:02]} Bg4 {[%clk 01:09:20]}
{[%emt 00:20:38]} 7. Be2 {[%clk 01:17:35]} {[%emt 00:08:25]} dxe3 {[%clk
01:02:24]} {[%emt 00:07:26]} 8. Bxe3 {[%clk 01:08:56]} {[%emt 00:09:09]} Qxd1+
{[%clk 00:52:06]} {[%emt 00:10:48]} 9. Bxd1 {[%clk 01:09:06]} {[%emt 00:00:20]}
Ng6 {[%clk 00:52:15]} {[%emt 00:00:21]} 10. O-O {[%clk 01:04:14]} {[%emt
00:05:22]} Ncxe5 {[%clk 00:48:59]} {[%emt 00:03:46]} 11. Nxe5 {[%clk 01:00:42]}
{[%emt 00:04:02]} Nxe5 {[%clk 00:48:04]} {[%emt 00:01:25]} 12. Bxg4 {[%clk
01:00:52]} {[%emt 00:00:19]} Nxg4 {[%clk 00:48:14]} {[%emt 00:00:21]} 13. Bf4
{[%clk 01:00:43]} {[%emt 00:00:38]} O-O-O {[%clk 00:45:48]} {[%emt 00:02:57]}
14. Nc3 {[%clk 00:59:52]} {[%emt 00:01:21]} Bc5 {[%clk 00:39:50]} {[%emt
00:06:27]} 15. b4 {[%clk 00:47:47]} {[%emt 00:12:35]} Bd4 {[%clk 00:37:21]}
{[%emt 00:02:59]} 16. Rac1 {[%clk 00:48:04]} {[%emt 00:00:13]} Be5 {[%clk
00:33:29]} {[%emt 00:04:22]} 17. Bxe5 {[%clk 00:44:55]} {[%emt 00:03:39]} Nxe5
{[%clk 00:33:52]} {[%emt 00:00:08]} 18. Nd5 {[%clk 00:44:05]} {[%emt 00:01:19]}
Rhe8 {[%clk 00:30:26]} {[%emt 00:03:56]} 19. Ne3 {[%clk 00:40:06]} {[%emt
00:04:28]} 1/2-1/2

[Event "Klubbmästerskap 2025 Torsdagar"]
[Site "Linköping, Sweden"]
[Date "2025.02.13"]
[Round "4.7"]
[White "Davidsson, Asker"]
[Black "Ekman, Theo"]
[Result "0-1"]
[TimeControl "90 min + 30 sec/move"]
[WhiteElo "1823"]
[BlackElo "1806"]

1. c4 {[%clk 01:30:54]} {[%emt 00:00:06]} Nc6 {[%clk 01:30:54]} {[%emt
00:00:06]} 2. Nc3 {[%clk 01:30:33]} {[%emt 00:00:51]} e5 {[%clk 01:31:12]}
{[%emt 00:00:11]} 3. g3 {[%clk 01:30:40]} {[%emt 00:00:24]} f5 {[%clk
01:30:40]} {[%emt 00:01:01]} 4. d3 {[%clk 01:30:39]} {[%emt 00:00:32]} Bc5
{[%clk 01:30:08]} {[%emt 00:01:01]} 5. Bg2 {[%clk 01:30:30]} {[%emt 00:00:41]}
d6 {[%clk 01:29:03]} {[%emt 00:01:34]} 6. e3 {[%clk 01:29:25]} {[%emt
00:01:36]} Nf6 {[%clk 01:29:13]} {[%emt 00:00:20]} 7. Nge2 {[%clk 01:29:43]}
{[%emt 00:00:12]} O-O {[%clk 01:28:02]} {[%emt 00:01:40]} 8. O-O {[%clk
01:29:35]} {[%emt 00:00:38]} Bb6 {[%clk 01:24:03]} {[%emt 00:04:29]} 9. a3
{[%clk 01:28:00]} {[%emt 00:02:06]} Qe8 {[%clk 01:20:13]} {[%emt 00:04:19]} 10.
Nd5 {[%clk 01:27:27]} {[%emt 00:01:03]} Nxd5 {[%clk 01:14:32]} {[%emt
00:06:11]} 11. Bxd5+ {[%clk 01:27:19]} {[%emt 00:00:38]} Kh8 {[%clk 01:14:52]}
{[%emt 00:00:11]} 12. b4 {[%clk 01:26:44]} {[%emt 00:01:05]} Nd8 {[%clk
01:09:51]} {[%emt 00:05:30]} 13. d4 {[%clk 01:25:12]} {[%emt 00:02:02]} c6
{[%clk 01:08:19]} {[%emt 00:02:02]} 14. Bg2 {[%clk 01:25:03]} {[%emt 00:00:40]}
e4 {[%clk 01:07:33]} {[%emt 00:01:15]} 15. Nf4 {[%clk 01:22:04]} {[%emt
00:03:29]} Ne6 {[%clk 00:50:55]} {[%emt 00:17:08]} 16. Nxe6 {[%clk 01:17:09]}
{[%emt 00:05:24]} Bxe6 {[%clk 00:50:37]} {[%emt 00:00:47]} 17. d5 {[%clk
01:04:49]} {[%emt 00:12:50]} cxd5 {[%clk 00:50:46]} {[%emt 00:00:22]} 18. cxd5
{[%clk 01:05:10]} {[%emt 00:00:09]} Bg8 {[%clk 00:51:08]} {[%emt 00:00:08]} 19.
Qd2 {[%clk 01:04:25]} {[%emt 00:01:15]} Qf7 {[%clk 00:47:45]} {[%emt 00:03:52]}
20. Rd1 {[%clk 01:04:24]} {[%emt 00:00:32]} Rac8 {[%clk 00:46:18]} {[%emt
00:01:55]} 21. Bb2 {[%clk 01:03:55]} {[%emt 00:01:01]} Rc7 {[%clk 00:44:44]}
{[%emt 00:02:04]} 22. Rac1 {[%clk 01:02:44]} {[%emt 00:01:42]} Rfc8 {[%clk
00:43:36]} {[%emt 00:01:36]} 23. Bh3 {[%clk 00:59:24]} {[%emt 00:03:51]} Rxc1
{[%clk 00:39:23]} {[%emt 00:04:44]} 24. Rxc1 {[%clk 00:58:17]} {[%emt
00:01:37]} Rxc1+ {[%clk 00:39:26]} {[%emt 00:00:27]} 25. Bxc1 {[%clk 00:56:56]}
{[%emt 00:01:51]} Bd8 {[%clk 00:36:17]} {[%emt 00:03:38]} 26. Bb2 {[%clk
00:48:21]} {[%emt 00:09:06]} Bf6 {[%clk 00:31:54]} {[%emt 00:04:53]} 27. Bxf5
{[%clk 00:44:44]} {[%emt 00:04:06]} Bxb2 {[%clk 00:31:22]} {[%emt 00:01:02]} 28.
Be6 {[%clk 00:44:14]} {[%emt 00:01:00]} Qf6 {[%clk 00:31:31]} {[%emt 00:00:20]}
29. Qc2 {[%clk 00:44:16]} {[%emt 00:00:30]} Bc3 {[%clk 00:06:04]} {[%emt
00:25:52]} 30. Qxe4 {[%clk 00:43:18]} {[%emt 00:01:32]} Bxe6 {[%clk 00:02:56]}
{[%emt 00:03:38]} 31. dxe6 {[%clk 00:42:31]} {[%emt 00:01:17]} Be1 {[%clk
00:03:14]} {[%emt 00:00:12]} 32. f4 {[%clk 00:41:34]} {[%emt 00:01:28]} Qb2
{[%clk 00:02:56]} {[%emt 00:00:47]} 33. Qg2 {[%clk 00:41:28]} {[%emt 00:00:37]}
Qxg2+ {[%clk 00:02:58]} {[%emt 00:00:29]} 34. Kxg2 {[%clk 00:41:56]} {[%emt
00:00:02]} Kg8 {[%clk 00:03:15]} {[%emt 00:00:13]} 35. Kf3 {[%clk 00:41:45]}
{[%emt 00:00:41]} Bc3 {[%clk 00:02:59]} {[%emt 00:00:45]} 36. Ke4 {[%clk
00:39:48]} {[%emt 00:02:28]} Kf8 {[%clk 00:03:14]} {[%emt 00:00:15]} 37. Kd5
{[%clk 00:34:21]} {[%emt 00:05:56]} Ke7 {[%clk 00:03:35]} {[%emt 00:00:09]} 38.
g4 {[%clk 00:33:02]} {[%emt 00:01:48]} Bd2 {[%clk 00:03:32]} {[%emt 00:00:35]}
39. f5 {[%clk 00:32:34]} {[%emt 00:00:57]} Bxe3 {[%clk 00:03:03]} {[%emt
00:00:58]} 40. b5 {[%clk 00:32:44]} {[%emt 00:00:21]} a6 {[%clk 00:01:00]}
{[%emt 00:02:34]} 41. bxa6 {[%clk 00:31:43]} {[%emt 00:01:31]} bxa6 {[%clk
00:01:24]} {[%emt 00:00:06]} 42. h4 {[%clk 00:31:58]} {[%emt 00:00:14]} Bf2
{[%clk 00:01:11]} {[%emt 00:00:42]} 43. h5 {[%clk 00:31:19]} {[%emt 00:01:09]}
h6 {[%clk 00:01:10]} {[%emt 00:00:31]} 44. Kc6 {[%clk 00:30:49]} {[%emt
00:01:01]} a5 {[%clk 00:00:45]} {[%emt 00:00:55]} 45. a4 {[%clk 00:30:19]}
{[%emt 00:01:00]} Be3 {[%clk 00:00:45]} {[%emt 00:00:30]} 46. Kd5 {[%clk
00:29:55]} {[%emt 00:00:55]} Bf4 {[%clk 00:00:56]} {[%emt 00:00:18]} 47. Ke4
{[%clk 00:30:13]} {[%emt 00:00:12]} Bg5 {[%clk 00:00:48]} {[%emt 00:00:38]} 48.
Kd5 {[%clk 00:30:40]} {[%emt 00:00:03]} Bf6 {[%clk 00:01:08]} {[%emt 00:00:10]}
49. Kc6 {[%clk 00:30:28]} {[%emt 00:00:43]} Bc3 {[%clk 00:00:51]} {[%emt
00:00:47]} 50. Kd5 {[%clk 00:30:41]} {[%emt 00:00:18]} Be5 {[%clk 00:00:54]}
{[%emt 00:00:26]} 51. Kc6 {[%clk 00:31:04]} {[%emt 00:00:07]} Kd8 {[%clk
00:00:54]} {[%emt 00:00:30]} 52. Kb5 {[%clk 00:30:19]} {[%emt 00:01:16]} Bc3
{[%clk 00:00:50]} {[%emt 00:00:33]} 53. Kc6 {[%clk 00:30:45]} {[%emt 00:00:04]}
Bb4 {[%clk 00:00:50]} {[%emt 00:00:31]} 54. Kd5 {[%clk 00:31:13]} {[%emt
00:00:02]} Kc7 {[%clk 00:00:44]} {[%emt 00:00:36]} 55. Kc4 {[%clk 00:30:51]}
{[%emt 00:00:52]} Be1 {[%clk 00:00:52]} {[%emt 00:00:22]} 56. Kb5 {[%clk
00:30:54]} {[%emt 00:00:27]} Bd2 {[%clk 00:00:46]} {[%emt 00:00:36]} 57. Kc4
{[%clk 00:31:18]} {[%emt 00:00:07]} Kc6 {[%clk 00:00:52]} {[%emt 00:00:24]} 58.
Kd4 {[%clk 00:31:46]} {[%emt 00:00:02]} Bg5 {[%clk 00:00:51]} {[%emt 00:00:30]}
59. Kc4 {[%clk 00:32:09]} {[%emt 00:00:08]} d5+ {[%clk 00:01:08]} {[%emt
00:00:13]} 60. Kd4 {[%clk 00:32:29]} {[%emt 00:00:10]} Kd6 {[%clk 00:01:30]}
{[%emt 00:00:08]} 61. Kd3 {[%clk 00:31:23]} {[%emt 00:01:36]} Kc5 {[%clk
00:01:34]} {[%emt 00:00:26]} 62. Kc3 {[%clk 00:31:43]} {[%emt 00:00:10]} d4+
{[%clk 00:01:49]} {[%emt 00:00:15]} 63. Kd3 {[%clk 00:32:00]} {[%emt 00:00:14]}
Kd5 {[%clk 00:01:58]} {[%emt 00:00:20]} 64. Ke2 {[%clk 00:32:22]} {[%emt
00:00:08]} Ke4 {[%clk 00:02:06]} {[%emt 00:00:21]} 65. Kd1 {[%clk 00:32:37]}
{[%emt 00:00:15]} Kf3 {[%clk 00:02:17]} {[%emt 00:00:19]} 66. Kc2 {[%clk
00:32:58]} {[%emt 00:00:10]} Ke2 {[%clk 00:02:25]} {[%emt 00:00:21]} 0-1

[Event "Klubbmästerskap 2025 Torsdagar"]
[Site "Linköping, Sweden"]
[Date "2025.02.13"]
[Round "4.8"]
[White "Larsson, Emma 2008"]
[Black "Andersson, Fredrik 1969"]
[Result "1-0"]
[TimeControl "90 min + 30 sec/move"]
[WhiteElo "1754"]
[BlackElo "1746"]

1. e4 {[%clk 01:30:56]} {[%emt 00:00:03]} c5 {[%clk 01:30:47]} {[%emt
00:00:13]} 2. Nf3 {[%clk 01:31:14]} {[%emt 00:00:12]} Nc6 {[%clk 01:31:11]}
{[%emt 00:00:07]} 3. d3 {[%clk 01:31:26]} {[%emt 00:00:18]} g6 {[%clk
01:31:22]} {[%emt 00:00:19]} 4. g3 {[%clk 01:31:48]} {[%emt 00:00:08]} Bg7
{[%clk 01:31:29]} {[%emt 00:00:22]} 5. Bg2 {[%clk 01:32:02]} {[%emt 00:00:16]}
d6 {[%clk 01:30:36]} {[%emt 00:01:24]} 6. O-O {[%clk 01:32:17]} {[%emt
00:00:15]} Nf6 {[%clk 01:30:08]} {[%emt 00:00:58]} 7. Re1 {[%clk 01:30:15]}
{[%emt 00:02:31]} Qc7 {[%clk 01:22:06]} {[%emt 00:08:33]} 8. c3 {[%clk
01:26:04]} {[%emt 00:04:41]} e5 {[%clk 01:17:02]} {[%emt 00:05:34]} 9. Nbd2
{[%clk 01:18:53]} {[%emt 00:07:41]} O-O {[%clk 01:16:08]} {[%emt 00:01:24]} 10.
Nf1 {[%clk 01:18:46]} {[%emt 00:00:36]} b6 {[%clk 01:05:08]} {[%emt 00:11:31]}
11. h4 {[%clk 01:15:57]} {[%emt 00:03:18]} Ng4 {[%clk 00:57:57]} {[%emt
00:07:43]} 12. N1h2 {[%clk 01:13:43]} {[%emt 00:02:44]} Rb8 {[%clk 00:52:20]}
{[%emt 00:06:07]} 13. a4 {[%clk 01:09:58]} {[%emt 00:04:15]} Nxh2 {[%clk
00:47:57]} {[%emt 00:04:52]} 14. Nxh2 {[%clk 01:09:42]} {[%emt 00:00:47]} Ne7
{[%clk 00:45:34]} {[%emt 00:02:54]} 15. h5 {[%clk 01:04:15]} {[%emt 00:05:57]}
f5 {[%clk 00:38:55]} {[%emt 00:07:09]} 16. hxg6 {[%clk 00:58:58]} {[%emt
00:05:47]} Nxg6 {[%clk 00:38:22]} {[%emt 00:01:03]} 17. exf5 {[%clk 00:57:49]}
{[%emt 00:01:39]} Bxf5 {[%clk 00:38:07]} {[%emt 00:00:45]} 18. Bd5+ {[%clk
00:54:58]} {[%emt 00:03:21]} Kh8 {[%clk 00:38:26]} {[%emt 00:00:11]} 19. Kg2
{[%clk 00:48:08]} {[%emt 00:07:19]} Qd7 {[%clk 00:34:57]} {[%emt 00:04:00]} 20.
Rh1 {[%clk 00:44:38]} {[%emt 00:03:59]} Bh3+ {[%clk 00:33:06]} {[%emt
00:02:22]} 21. Kg1 {[%clk 00:44:41]} {[%emt 00:00:27]} Qf5 {[%clk 00:31:59]}
{[%emt 00:01:38]} 22. Be3 {[%clk 00:37:47]} {[%emt 00:07:23]} Bh6 {[%clk
00:28:25]} {[%emt 00:04:04]} 23. Be4 {[%clk 00:34:43]} {[%emt 00:03:34]} Qf6
{[%clk 00:27:07]} {[%emt 00:01:48]} 24. Qe2 {[%clk 00:29:00]} {[%emt 00:06:13]}
Bxe3 {[%clk 00:25:01]} {[%emt 00:02:36]} 25. Qxe3 {[%clk 00:28:02]} {[%emt
00:01:28]} Nf4 {[%clk 00:24:12]} {[%emt 00:01:20]} 26. Nf1 {[%clk 00:21:11]}
{[%emt 00:07:21]} Rg8 {[%clk 00:20:10]} {[%emt 00:04:31]} 27. Rh2 {[%clk
00:15:54]} {[%emt 00:05:47]} d5 {[%clk 00:19:25]} {[%emt 00:01:16]} 28. Bf3
{[%clk 00:12:43]} {[%emt 00:03:27]} Rb7 {[%clk 00:15:46]} {[%emt 00:04:24]} 29.
Kh1 {[%clk 00:10:41]} {[%emt 00:02:30]} Bxf1 {[%clk 00:08:16]} {[%emt
00:08:00]} 30. Rxf1 {[%clk 00:11:03]} {[%emt 00:00:09]} e4 {[%clk 00:07:08]}
{[%emt 00:01:39]} 31. dxe4 {[%clk 00:07:29]} {[%emt 00:04:04]} 1-0